[Event "26th Womens ECCC 2022"]
[Site "Mayrhofen"]
[Date "2022.10.04"]
[Round "2.17"]
[White "Peglau, Charis"]
[Black "Muzychuk, Mariya"]
[Result "0-1"]
[ECO "A46"]
[WhiteElo "1960"]
[BlackElo "2527"]
[Annotator "TA"]
[PlyCount "104"]
[EventDate "2022.10.03"]
[EventType "team-tourn"]
[EventCountry "AUT"]
[SourceTitle "playchess.com"]
[Source "ChessBase"]
[SourceQuality "1"]
[TimeControl "40/5400+30:1800+30"]

{[%evp 25,104,-20,-10,-17,-18,-20,1,-16,-19,-21,-16,-27,-20,-53,-31,-52,-34,-18,-10,-38,0,0,0,-44,-54,-116,-131,-143,-186,-177,-112,-110,-114,-191,-166,-156,-73,-243,-155,-207,-22,-214,-214,-221,-221,-439,-416,-391,-356,-568,-562,-1339,-1165,-12836,-12836,-12837,-12837,-12837,-12838,-12838,-12835,-12839,-12836,-12836,-448,-12836,-12837,-12839,-12836,-12841,-12841,-12841,-12842,-12844,-12839,-12842,-12843,-12849,-12847,-12848,-12848]} 1. d4 {[%emt 0:00:03]} Nf6 {[%emt 0:00:18]} 2. Nf3 {[%emt 0:00:06]} e6 {[%emt 0:01:08]} 3. Bf4 {[%emt 0:00:52]} c5 {[%emt 0:01:15]} 4. e3 {[%emt 0:02:16]} Nc6 {[%emt 0:00:59]} 5. c3 {[%emt 0:03:44]} d5 {[%emt 0:00:42]} 6. Bd3 {[%emt 0:02:27]} Bd6 {[%emt 0:00:31]} 7. Bxd6 {[%emt 0:02:30]} Qxd6 {[%emt 0:00:05]} 8. Nbd2 {[%emt 0:01:41]} O-O {[%emt 0:00:55]} 9. O-O {[%emt 0:01:44]} e5 {[%emt 0:01:58]} 10. dxe5 {[%emt 0:03:00]} Nxe5 {[%emt 0:00:06]} 11. Nxe5 {[%emt 0:00:13]} Qxe5 {[%emt 0:00:05]} 12. Nf3 {[%emt 0:00:46]} Qe7 {[%emt 0:02:39]} 13. h3 {[%emt 0:03:23]} Bd7 {[%emt 0:02:01]} 14. Qc2 {[%emt 0:02:13] D02: 1 d4 d5 2 Nf3 sidelines, including 2...Nf6 3 g3 and 2...Nf6 3 Bf4.} Bc6 {[%emt 0:00:59]} 15. Rfe1 {[%emt 0:04:39]} Rad8 {[%emt 0:01:48] [#]} 16. a4 $146 {[%emt 0:07:54][%cal Ob2b4] The position is equal.} ({Predecessor:} 16. Nd2 c4 17. Be2 Rd6 18. Nf3 Rfd8 19. Nd4 Bd7 20. Bf3 Ne4 21. Bxe4 dxe4 22. Kh1 {1-0 (74) Gelzinnus,S (1576)-Harke,H (1684) Schloss Schney 2005}) 16... a5 {[%emt 0:02:51]} 17. Qe2 {[%emt 0:04:45]} Ne4 {[%emt 0:03:30]} 18. Bb5 {[%emt 0:10:11]} Rd6 {[%emt 0:01:34]} 19. Red1 {[%emt 0:05:03]} Rfd8 {[%emt 0:02:57]} (19... c4 {is more complex.} 20. Rd4 Rg6 21. Rad1 Qe6) 20. Rac1 {[%emt 0:04:47]} f5 {[%emt 0:04:18]} 21. Bxc6 {[%emt 0:08:12]} bxc6 {[%emt 0:00:43]} 22. c4 {[%emt 0:00:43]} Rb8 {[%emt 0:01:16]} (22... d4 $5 {[%cal Rd4d3]} 23. Rd3 Qa7 $11) 23. Qc2 {[%emt 0:09:13]} Qf6 {[%emt 0:18:40]} 24. b3 {[%emt 0:01:24]} d4 {[%emt 0:01:13]} 25. exd4 {[%emt 0:02:44]} ({White should play} 25. Qd3 $15) 25... cxd4 $17 {[%emt 0:00:08]} 26. c5 {[%emt 0:13:43]} Rd5 {[%emt 0:00:41]} 27. Qc4 {[%emt 0:01:11]} Rb4 {[%emt 0:08:07]} ({Black should try} 27... h6 $19 28. Ne1 (28. Rxd4 $2 Rb4 $19) 28... Nc3) 28. Qa6 {[%emt 0:00:06]} Rxb3 {[%emt 0:01:40]} 29. Qxa5 {[%emt 0:02:45]} (29. Qa8+ $17 Rd8 30. Qxa5) 29... d3 $36 {[%emt 0:06:46][%mdl 2048] And now ...h6 would win. White is under strong pressure.} 30. Nd2 {[%emt 0:01:46]} Rb8 {[%emt 0:01:28] Black has more active pieces.} (30... Rb2 $142 {aiming for ...h6.} 31. Rb1 h6 32. Rxb2 Qxb2 33. Nxe4 fxe4 34. Qa8+ Kh7 35. Qxc6 Qd4) 31. Qc7 $2 {[%emt 0:01:02] [#]} (31. Nxe4 $17 fxe4 32. Qc3) 31... Rf8 {[%emt 0:01:02] Strongly threatening ...Nc3.} 32. a5 {[%emt 0:00:42]} (32. Rc4 $17 {is a better defense.}) 32... Qd4 $2 {[%emt 0:03:38]} ({Inferior is} 32... Nxc5 33. Qb6 Nd7 34. Qb3 $11) ({Worse is} 32... Rxc5 33. Rxc5 Nxc5 34. Nf3 $11) (32... Nc3 $19 {Hoping for ...Ne2+.} 33. Nf3 Nxd1 34. Rxd1 g5) 33. Nxe4 $2 {[%emt 0:00:39]} (33. Qxc6 $11 {and White is okay.} Kh8 34. Nxe4 fxe4 35. Kh1) 33... fxe4 {[%emt 0:00:07]} 34. Qg3 {[%emt 0:00:25]} Rxc5 {[%emt 0:02:55]} 35. Qe3 {[%emt 0:00:34]} (35. Rxc5 Qxc5 36. a6) 35... Qxe3 {[%emt 0:05:54]} 36. fxe3 {[%emt 0:00:02]} Rxa5 {[%emt 0:02:01][%cal Bc5a5,Ba5a2,Ba2g2][%mdl 32]} 37. Rxc6 {[%emt 0:00:11][%mdl 4096] Endgame KRR-KRR} (37. Rc4 $142 Rfa8 38. Kf2) 37... Ra2 {[%emt 0:04:54] Black is clearly winning.} 38. Re6 {[%emt 0:00:43]} Rff2 {[%emt 0:00:46]} 39. Re8+ {[%emt 0:01:02]} Kf7 {[%emt 0:00:05]} 40. Rxe4 {[%emt 0:00:04]} Rxg2+ {[%emt 0:00:20]} 41. Kh1 {[%emt 0:30:12]} Rh2+ {[%emt 0:31:49]} 42. Kg1 {[%emt 0:00:04]} Rag2+ {[%emt 0:00:33]} 43. Kf1 {[%emt 0:00:05]} Rf2+ {[%emt 0:00:21]} 44. Kg1 {[%emt 0:00:06]} Rhg2+ {[%emt 0:00:19]} 45. Kh1 {[%emt 0:00:05]} d2 {[%emt 0:00:10]} 46. h4 {[%emt 0:00:00]} Rg3 {[%emt 0:00:00]} 47. Ra1 {[%emt 0:00:00]} Re2 {[%emt 0:00:00]} 48. Ra7+ {[%emt 0:00:00] [#]} Kg6 $1 {[%emt 0:00:00][%cal Rd2d1]} 49. Rd7 {[%emt 0:00:00]} Kh6 {[%emt 0:00:00]} 50. Red4 {[%emt 0:00:00]} Rgxe3 {[%emt 0:00:00]} 51. Rxd2 {[%emt 0:00:00]} Rh3+ {[%emt 0:00:00]} 52. Kg1 {[%emt 0:00:00]} Rxd2 {Weighted Error Value: White=0.63/Black=0.18 (very precise)} 0-1

[Event "26th Womens ECCC 2022"]
[Site "Mayrhofen"]
[Date "2022.10.04"]
[Round "2.18"]
[White "Urh, Zala"]
[Black "Peglau, Dora"]
[Result "1-0"]
[ECO "E51"]
[WhiteElo "2221"]
[BlackElo "1745"]
[Annotator "TA"]
[PlyCount "53"]
[EventDate "2022.10.03"]
[EventType "team-tourn"]
[EventCountry "AUT"]
[SourceTitle "playchess.com"]
[Source "ChessBase"]
[SourceQuality "1"]
[TimeControl "40/5400+30:1800+30"]

{[%evp 20,53,37,0,0,0,33,31,68,54,87,90,77,33,204,201,230,228,234,244,230,258,221,223,283,287,518,515,716,695,806,793,783,773,730,698]} 1. d4 {[%emt 0:00:12]} Nf6 {[%emt 0:00:09]} 2. c4 {[%emt 0:00:21]} e6 {[%emt 0:00:06]} 3. Nc3 {[%emt 0:00:09]} Bb4 {[%emt 0:00:14]} 4. Nf3 {[%emt 0:00:12]} O-O {[%emt 0:01:20]} 5. e3 {[%emt 0:00:06]} d5 {[%emt 0:01:06]} 6. Bd2 {[%emt 0:00:08]} c5 {[%emt 0:03:18]} 7. a3 {[%emt 0:03:02]} Bxc3 {[%emt 0:01:34]} 8. Bxc3 {[%emt 0:00:07]} Ne4 {[%emt 0:03:21]} 9. Rc1 {[%emt 0:01:29][%cal Ba1c1,Bc1c3,Bc3b3][%mdl 32]} Nxc3 {[%emt 0:04:20]} 10. Rxc3 {[%emt 0:00:27]} cxd4 {[%emt 0:02:26]} 11. exd4 {[%emt 0:11:00]} Nc6 {[%emt 0:04:39] B14: Caro-Kann: Panov-Botvinnik Attack with 5...e6 and 5...g6.} 12. Bd3 {[%emt 0:05:33]} Re8 {[%emt 0:06:02]} 13. O-O {[%emt 0:04:26]} e5 {[%emt 0:18:39] White is slightly better.} 14. dxe5 {[%emt 0:03:30]} d4 {[%emt 0:02:52] [#]} 15. Rb3 $146 {[%emt 0:05:58]} ({Predecessor:} 15. Rc2 Bg4 16. h3 Bxf3 17. Qxf3 Nxe5 18. Qe4 Nxd3 19. Qxd3 Qf6 20. Rd1 Rad8 21. Rcd2 {½-½ (31) Haapasalo,J (2175)-Hytonen,H Helsinki 1997}) 15... Bg4 {[%emt 0:18:38]} 16. Qc2 {[%emt 0:18:57]} (16. Rxb7 Nxe5 17. Be4 d3 $11) (16. h3 $5 {[%cal Rh3g4]} Bxf3 17. Qxf3 $16) 16... Na5 $2 {[%emt 0:08:21] Loses the game.} ({Black should play} 16... g6 $14) 17. Bxh7+ $18 {[%emt 0:06:02]} Kh8 {[%emt 0:00:17] [#]} 18. Rd3 {[%emt 0:00:42]} Nc6 {[%emt 0:11:28]} 19. Be4 {[%emt 0:05:44] Threatens to win with Bxc6.} Nxe5 {[%emt 0:01:21]} 20. Nxe5 {[%emt 0:00:44]} (20. Bxb7 $6 Bxf3 21. Bxf3 (21. gxf3 Nxd3 22. Qxd3 Rb8 $17) (21. Bxa8 Qxa8 22. gxf3 Nxf3+ 23. Rxf3 Qxf3 $11) 21... Rb8 $16) 20... Rxe5 {[%emt 0:00:08]} 21. Rg3 {[%emt 0:01:28]} ({But not} 21. Bxb7 $6 Rb8 $16) 21... Qd7 {[%emt 0:01:40]} 22. f4 {[%emt 0:02:43][%cal Bf2f4,Bf4f5][%mdl 32]} Rh5 {[%emt 0:05:47] [#]} (22... Rxe4 23. Qxe4 Bf5) 23. f5 {[%emt 0:02:58] White is clearly winning.} Rh4 {[%emt 0:00:06]} 24. Rf4 {[%emt 0:02:19]} d3 {[%emt 0:01:29]} 25. Qxd3 {[%emt 0:00:56]} ({Not} 25. Rfxg4 dxc2 26. Rxh4+ Kg8 27. Bxc2 Qd2 $17) 25... Qxd3 {[%emt 0:00:22]} 26. Bxd3 {[%emt 0:00:05]} Rd8 {[%emt 0:00:05]} 27. Bf1 {[%emt 0:00:13] Weighted Error Value: White=0.07 (flawless) /Black=0.57} 1-0

[Event "26th Womens ECCC 2022"]
[Site "Mayrhofen"]
[Date "2022.10.04"]
[Round "2.19"]
[White "Peglau, Mirjam"]
[Black "Vidic, Teja"]
[Result "0-1"]
[ECO "C44"]
[WhiteElo "1886"]
[BlackElo "2126"]
[Annotator "TA"]
[PlyCount "38"]
[EventDate "2022.10.03"]
[EventType "team-tourn"]
[EventCountry "AUT"]
[SourceTitle "playchess.com"]
[Source "ChessBase"]
[SourceQuality "1"]
[TimeControl "40/5400+30:1800+30"]

{[%evp 13,38,4,5,0,0,-40,-50,-55,-36,-116,-118,-134,-152,-151,-136,-139,-48,-187,-183,-205,-150,-806,-758,-937,-418,-757,-756]} 1. e4 {[%emt 0:00:02]} e5 {[%emt 0:00:07]} 2. Nf3 {[%emt 0:00:03]} Nc6 {[%emt 0:00:05]} 3. d4 {[%emt 0:00:04]} exd4 {[%emt 0:00:08]} 4. Nxd4 {[%emt 0:00:01]} Nf6 {[%emt 0:00:15]} 5. Nxc6 {[%emt 0:00:06]} bxc6 {[%emt 0:00:06]} 6. Bd3 {[%emt 0:00:04]} Bc5 {[%emt 0:04:03]} 7. O-O {[%emt 0:00:24]} d6 {[%emt 0:00:37]} 8. Bg5 {[%emt 0:04:36] C45: Scotch Game.} h6 {[%emt 0:01:51]} 9. Bh4 {[%emt 0:00:27]} g5 {[%emt 0:02:13]} 10. Bg3 {[%emt 0:00:06] Black is slightly better.} h5 $1 {[%emt 0:00:07] [#] aiming for ...h4.} 11. e5 {[%emt 0:23:45]} (11. h3 $1 $15) 11... h4 $17 {[%emt 0:01:35] [#]} 12. Bxh4 $146 {[%emt 0:03:40]} ({Predecessor:} 12. exf6 Qxf6 13. Bxd6 cxd6 14. Be4 d5 15. Bxd5 Kf8 16. Qf3 Qxf3 17. Bxf3 Bd7 18. Nc3 {½-½ (60) Sadbhav,R (1612)-Szurkos,A (1712) Budapest 2018}) 12... Rxh4 {[%emt 0:04:33]} ({But not} 12... gxh4 $6 13. exf6 Qxf6 14. Nd2 $11) 13. exf6 {[%emt 0:00:38]} Qxf6 {[%emt 0:00:45] Strongly threatening ...Qh6.} 14. Nd2 {[%emt 0:07:17]} d5 {[%emt 0:07:19] Prevents Ne4. Black has more active pieces.} ({Black should try} 14... Kf8 $17 {Threatens to win with ...Bg4.} 15. c3 d5) 15. Qf3 {[%emt 0:30:25]} (15. Nf3 $1 $15) 15... Qh6 $40 {[%emt 0:02:33][%mdl 128] Black goes for the king.} ({And not} 15... Qxb2 16. h3 $15) 16. Rae1+ {[%emt 0:00:19]} Be6 {[%emt 0:00:51] This bishop pair is nice.} 17. Ne4 $2 {[%emt 0:26:15]} (17. Bf5 $17 Rxh2 18. Bh3) 17... dxe4 {[%emt 0:05:44]} 18. Rxe4 {[%emt 0:00:01]} g4 {[%emt 0:07:20]} (18... Rxh2 $142 {[%csl Gh6][%cal Rh2h1]} 19. g3 Ke7) 19. Qf5 {[%emt 0:01:12] [#]} (19. Rxe6+ $142 Qxe6 20. Qf5 Qxf5 21. Bxf5) 19... Rxh2 $1 {[%emt 0:01:48] Weighted Error Value: White=1.15/Black=0.52} 0-1

[Event "26th Womens ECCC 2022"]
[Site "Mayrhofen"]
[Date "2022.10.04"]
[Round "2.20"]
[White "Kejzar, Petra"]
[Black "Peglau, Sarah"]
[Result "1-0"]
[ECO "D23"]
[WhiteElo "2120"]
[BlackElo "1794"]
[Annotator "TA"]
[PlyCount "43"]
[EventDate "2022.10.03"]
[EventType "team-tourn"]
[EventCountry "AUT"]
[SourceTitle "playchess.com"]
[Source "ChessBase"]
[SourceQuality "1"]
[TimeControl "40/5400+30:1800+30"]

{[%evp 11,43,-2,0,-21,7,-20,-20,-19,11,8,133,117,120,118,117,126,128,127,104,92,372,354,402,407,689,687,694,702,703,706,707,684,706,693]} 1. d4 {[%emt 0:00:03]} d5 {[%emt 0:01:03]} 2. c4 {[%emt 0:00:23]} dxc4 {[%emt 0:02:42]} 3. Nf3 {[%emt 0:00:21]} Nf6 {[%emt 0:01:37]} 4. g3 {[%emt 0:05:09]} c6 {[%emt 0:08:19]} 5. Bg2 {[%emt 0:00:57]} b5 {[%emt 0:11:05]} 6. O-O {[%emt 0:01:33]} e6 {[%emt 0:03:57]} 7. Bg5 {[%emt 0:09:09] E04: Open Catalan: 5 Nf3.} Be7 {[%emt 0:01:45]} 8. a4 {[%emt 0:07:56] [#] aiming for axb5.} Bb7 {[%emt 0:01:10]} 9. Qc2 {[%emt 0:01:26] [#] The position is equal.} O-O $146 {[%emt 0:04:12]} ({Predecessor:} 9... a6 10. Nbd2 Nbd7 11. b3 cxb3 12. Nxb3 O-O 13. Ne1 Nd5 14. Bxe7 Qxe7 15. Nd3 N7b6 {1-0 (52) Miroshnichenko,E (2616)-Bagaturov,G (2461) Izmir 2006}) 10. axb5 {[%emt 0:01:56]} cxb5 {[%emt 0:00:42]} (10... Qb6 $1 $11 {keeps the balance.}) 11. Bxf6 $16 {[%emt 0:00:13]} Bxf6 {[%emt 0:05:27] [#]} 12. Ng5 $1 {[%emt 0:00:34][%mdl 576] Discovered Attack} Bxg5 {[%emt 0:00:57]} 13. Bxb7 {[%emt 0:00:07]} Nd7 {[%emt 0:00:43][%cal Bb8d7,Bd7f6,Bf6g4,Bg4e3,Be3c2][%mdl 32]} 14. Bxa8 {[%emt 0:00:16] White is more active.} Qxa8 {[%emt 0:00:05]} 15. Nc3 {[%emt 0:00:39]} Qc6 {[%emt 0:01:33][%mdl 8192] Loses the game.} (15... Qb7 $16 {keeps fighting.}) 16. Rxa7 $18 {[%emt 0:03:15]} Nf6 {[%emt 0:02:46]} 17. Rfa1 {[%emt 0:00:54]} e5 {[%emt 0:02:34]} (17... b4 $142 18. R1a6 Qc8) 18. dxe5 {[%emt 0:01:46] White is clearly winning.} Ng4 {[%emt 0:02:03][%cal Og5e3]} 19. Qf5 {[%emt 0:07:08][%csl LRg4,LRg5]} Ne3 {[%emt 0:06:17]} 20. Qf3 {[%emt 0:01:47]} Qxf3 {[%emt 0:10:10]} 21. exf3 {[%emt 0:00:13]} Nc2 {[%emt 0:00:07]} 22. Rd1 {[%emt 0:02:25] Weighted Error Value: White=0.04 (flawless) /Black=0.93} 1-0

[Event "26th Womens ECCC 2022"]
[Site "Mayrhofen"]
[Date "2022.10.05"]
[Round "3.1"]
[White "Danielian, Elina"]
[Black "Muzychuk, Anna"]
[Result "1/2-1/2"]
[ECO "A34"]
[WhiteElo "2431"]
[BlackElo "2534"]
[Annotator "TA"]
[PlyCount "68"]
[EventDate "2022.10.03"]
[EventType "team-tourn"]
[EventCountry "AUT"]
[SourceTitle "playchess.com"]
[Source "ChessBase"]
[SourceQuality "1"]
[TimeControl "40/5400+30:1800+30"]

{[%evp 9,68,22,18,-11,0,-7,8,8,0,-20,0,-27,-25,-27,-32,-37,-37,-47,-43,-49,-62,-70,-68,-78,-86,-91,-42,-58,-50,-66,-65,-65,-67,-72,-72,-72,-57,-59,-59,-59,-35,-35,-12,-12,-13,-13,-13,-13,-13,-13,-13,-13,-12,-17,-10,-12,0,-13,0,-19,0]} 1. Nf3 {[%emt 0:00:04]} c5 {[%emt 0:00:32]} 2. c4 {[%emt 0:00:49]} Nf6 {[%emt 0:00:31]} 3. Nc3 {[%emt 0:01:11]} d5 {[%emt 0:06:04]} 4. cxd5 {[%emt 0:00:29]} Nxd5 {[%emt 0:00:04]} 5. e3 {[%emt 0:15:36]} e6 {[%emt 0:00:35]} 6. Qa4+ {[%emt 0:05:11] A17: English Opening: 1...Nf6 with ...Bb4.} Bd7 {[%emt 0:05:09]} 7. Qb3 {[%emt 0:00:26][%csl LRb7,LRd5]} Nxc3 {[%emt 0:02:54]} 8. bxc3 {[%emt 0:07:06]} Qc7 {[%emt 0:01:49]} 9. Rb1 {[%emt 0:06:11]} b6 {[%emt 0:04:27] [#]} 10. c4 $146 {[%emt 0:02:03]} ({Predecessor:} 10. d4 Nc6 11. Bd3 Be7 12. O-O O-O 13. e4 e5 14. Qc2 Bg4 15. Nxe5 Nxe5 16. dxe5 {½-½ (57) Donchenko,A (2640)-Kozak,A (2475) Piestany 2022}) 10... Be7 {[%emt 0:09:07]} 11. Bb2 {[%emt 0:00:22]} O-O {[%emt 0:00:19]} 12. Ne5 {[%emt 0:12:14]} Be8 {[%emt 0:03:39]} 13. Bd3 {[%emt 0:01:52]} Nc6 {[%emt 0:01:53]} 14. Nxc6 {[%emt 0:05:21]} Bxc6 {[%emt 0:00:17]} 15. Qc2 {[%emt 0:06:27]} ({Of course not} 15. Qc3 Bf6 16. Qc2 Bxb2 17. Rxb2 Bxg2 18. Bxh7+ Kh8 $17) 15... f5 {[%emt 0:03:57]} 16. O-O {[%emt 0:02:48]} Rad8 {[%emt 0:01:39]} 17. Be2 {[%emt 0:01:11]} Bd6 {[%emt 0:05:17]} (17... e5 $17) 18. f4 $15 {[%emt 0:02:45]} e5 {[%emt 0:09:14][%cal Re5f4]} 19. fxe5 {[%emt 0:09:22]} Bxe5 {[%emt 0:00:09]} 20. Bxe5 {[%emt 0:03:50]} Qxe5 {[%emt 0:00:02]} 21. Bf3 {[%emt 0:00:47]} Bxf3 {[%emt 0:07:22]} 22. Rxf3 {[%emt 0:00:03]} f4 {[%emt 0:00:28]} 23. Rbf1 {[%emt 0:01:09][%cal Rf3f4]} fxe3 {[%emt 0:02:10]} 24. dxe3 {[%emt 0:00:10]} Rxf3 {[%emt 0:01:33]} 25. Rxf3 {[%emt 0:00:09][%mdl 4096] Endgame KQR-KQR} g6 {[%emt 0:09:17]} 26. h3 {[%emt 0:00:18] The position is equal.} Kg7 {[%emt 0:00:37]} 27. Qa4 {[%emt 0:06:08]} Kh6 {[%emt 0:06:58] Hoping for ...Rd2.} 28. Qc2 {[%emt 0:00:04] Against Rd2} Rd7 {[%emt 0:00:46]} 29. a4 {[%emt 0:01:04]} Kg7 {[%emt 0:00:38]} 30. Kf2 {[%emt 0:02:48]} Rd6 {[%emt 0:03:15]} 31. Rf4 {[%emt 0:02:32]} Re6 {[%emt 0:09:22]} 32. Qd3 {[%emt 0:01:08]} Rd6 {[%emt 0:00:16]} 33. Qc2 {[%emt 0:00:06]} Re6 {[%emt 0:00:03]} 34. Qd3 {[%emt 0:00:04]} Rd6 {[%emt 0:00:04] Weighted Error Value: White=0.05 (flawless) /Black=0.08 (flawless)} 1/2-1/2

[Event "26th Womens ECCC 2022"]
[Site "Mayrhofen"]
[Date "2022.10.05"]
[Round "3.2"]
[White "Stefanova, Antoaneta"]
[Black "Ushenina, Anna"]
[Result "0-1"]
[ECO "D00"]
[WhiteElo "2440"]
[BlackElo "2445"]
[Annotator "TA"]
[PlyCount "96"]
[EventDate "2022.10.03"]
[EventType "team-tourn"]
[EventCountry "AUT"]
[SourceTitle "playchess.com"]
[Source "ChessBase"]
[SourceQuality "1"]
[TimeControl "40/5400+30:1800+30"]

{[%evp 9,96,8,14,6,5,-13,14,14,14,11,28,14,24,-8,14,0,0,0,0,-7,0,-1,0,0,8,0,3,0,0,-12,-17,-41,-15,-13,0,0,0,-24,0,0,0,-105,-100,-109,-92,-120,-87,-122,-106,-114,-85,-137,-7,-86,-88,-255,-243,-387,-364,-450,-446,-659,-651,-833,-843,-823,-814,-782,-631,-1364,-1212,-5965,-1097,-5977,-5977,-3070,-2979,-2402,-2329,-6275,-5406,-1186,-1099,-29983,-29984,-29984,-6585,-5010,-2403]} 1. d4 {[%emt 0:00:05]} d5 {[%emt 0:00:36]} 2. Bf4 {[%emt 0:01:07]} e6 {[%emt 0:01:54]} 3. e3 {[%emt 0:02:05]} Bd6 {[%emt 0:00:06]} 4. Nf3 {[%emt 0:04:42]} Bxf4 {[%emt 0:08:46]} 5. exf4 {[%emt 0:00:04]} Ne7 {[%emt 0:01:47]} 6. Nbd2 {[%emt 0:03:22] D02: 1 d4 d5 2 Nf3 sidelines, including 2...Nf6 3 g3 and 2...Nf6 3 Bf4.} b6 {[%emt 0:00:19] [#]} 7. h4 $146 {[%emt 0:01:46][%cal Bh2h4,Bh4h5][%mdl 32]} ({Predecessor:} 7. c3 O-O 8. h4 c5 9. h5 h6 10. Rc1 Ba6 11. Bxa6 Nxa6 12. O-O Nb8 13. Ne5 {½-½ (54) Harikrishna,P (2716)-Anton Guijarro,D (2694) chess24.com INT 2022}) 7... Ba6 {[%emt 0:01:09]} 8. Bxa6 {[%emt 0:01:42] The position is equal.} Nxa6 {[%emt 0:00:03]} 9. Qe2 {[%emt 0:00:40]} Nb8 {[%emt 0:00:58]} 10. h5 {[%emt 0:02:38]} h6 {[%emt 0:06:00]} 11. c3 {[%emt 0:05:00]} Qd6 {[%emt 0:07:20]} 12. Ne5 {[%emt 0:02:29]} c5 {[%emt 0:15:22]} 13. Ndf3 {[%emt 0:01:40]} Nbc6 {[%emt 0:00:33]} 14. Rd1 {[%emt 0:04:25]} O-O {[%emt 0:05:15]} 15. O-O {[%emt 0:05:43]} Rac8 {[%emt 0:05:17]} 16. Rfe1 {[%emt 0:03:40]} Rc7 {[%emt 0:01:01]} 17. Rd3 {[%emt 0:24:20]} Rfc8 {[%emt 0:05:57]} 18. dxc5 {[%emt 0:10:35]} bxc5 {[%emt 0:00:30]} 19. Nh4 {[%emt 0:00:05]} Nxe5 {[%emt 0:15:47]} 20. fxe5 {[%emt 0:00:56]} Qa6 {[%emt 0:00:02]} 21. b3 $1 {[%emt 0:02:31]} Qb5 {[%emt 0:01:34]} 22. c4 {[%emt 0:02:03]} Qe8 {[%emt 0:01:57]} 23. g4 {[%emt 0:03:24]} dxc4 {[%emt 0:03:44]} 24. bxc4 {[%emt 0:00:06]} Rd7 {[%emt 0:00:31]} 25. Rg3 {[%emt 0:02:45]} (25. Red1 $11 {keeps the balance.} Rxd3 26. Rxd3) 25... Rd4 $17 {[%emt 0:08:01]} 26. Nf3 {[%emt 0:02:48] [#]} Rf4 {[%emt 0:00:04]} 27. Nd2 {[%emt 0:02:02]} Qd7 {[%emt 0:01:57]} 28. Nb3 {[%emt 0:03:32] Against Qd4} Qa4 {[%emt 0:03:24]} 29. Rc1 {[%emt 0:01:03]} Qc6 {[%emt 0:00:15] Black is more active.} 30. Qd3 {[%emt 0:06:39]} ({Better is} 30. Re3) 30... Re4 {[%emt 0:02:05]} (30... g5 $17 {Strongly threatening ...Qa4.} 31. hxg6 Nxg6) 31. Qd6 {[%emt 0:00:27]} (31. Rf1 $1 $11) 31... Qc7 {[%emt 0:00:01]} 32. f4 $2 {[%emt 0:01:31] White does not recover from this.} (32. Rcc3 $17) 32... Rxf4 $19 {[%emt 0:00:13]} 33. Re1 {[%emt 0:00:30]} (33. Qxc7 $142 Rxc7 34. Na5) 33... Rxc4 {[%emt 0:00:34][%cal Bf4c4,Bc4b4,Bb4b2][%mdl 32]} 34. Qd3 {[%emt 0:00:04]} Rb4 {[%emt 0:00:11]} 35. Qc2 {[%emt 0:00:45]} (35. Qd6 $142) 35... c4 {[%emt 0:01:20][%cal Bc5c4,Bc4c3][%mdl 32]} 36. Nd2 {[%emt 0:00:04]} c3 {[%emt 0:00:13] aiming for ...Qb6+.} 37. Nb3 {[%emt 0:00:16]} a5 {[%emt 0:00:32]} 38. Nc1 {[%emt 0:01:21]} Qc5+ {[%emt 0:02:05]} 39. Kh1 {[%emt 0:00:12]} Rb2 {[%emt 0:00:18]} 40. Qe4 {[%emt 0:00:13]} Qf2 {[%emt 0:01:23][%csl Gb2][%cal Rf2h2]} 41. Rg2 {[%emt 0:01:52] Against Qh2+} Qh4+ {[%emt 0:05:50]} 42. Kg1 {[%emt 0:00:05]} Rd8 {[%emt 0:00:24] ...Rdd2 is the strong threat.} 43. Rf1 {[%emt 0:03:47]} Rxg2+ {[%emt 0:05:14]} 44. Kxg2 {[%emt 0:02:37]} Rd2+ {[%emt 0:01:56]} 45. Ne2 {[%emt 0:00:11]} Nd5 {[%emt 0:00:40] And now ...c2 would win.} 46. Rf2 {[%emt 0:01:40]} c2 {[%emt 0:01:31]} 47. Qf3 {[%emt 0:01:12] [#]} Qxg4+ $3 {[%emt 0:01:16][%mdl 512]} 48. Qxg4 {[%emt 0:01:02]} Ne3+ {Weighted Error Value: White=0.74/Black=0.16 (very precise)} 0-1